[Event "44th Chess Olympiad Women 2022"]
[Site "Chennai"]
[Date "2022.08.01"]
[Round "4.23"]
[White "Aulia, Medina Warda"]
[Black "Noshin, Anjum"]
[Result "1-0"]
[WhiteElo "2374"]
[BlackElo "2027"]
[Annotator "TA"]
[PlyCount "53"]
[EventDate "2022.??.??"]
[TimeControl "60"]

{[%evp 11,53,14,20,27,35,30,33,0,0,0,0,0,14,0,22,14,9,12,66,71,147,94,279,272,
518,310,288,175,160,156,160,147,159,168,168,145,322,332,479,460,470,412,996,
739]} 1. e4 {[%emt 0:00:03]} e5 {[%emt 0:00:10]} 2. Nf3 {[%emt 0:00:06][%cal
Yg1f3,Yf3d4,Yd4f5]} Nc6 {[%emt 0:00:07]} 3. Bb5 {[%emt 0:00:05]} Nge7 {[%emt 0:
00:06]} 4. O-O {[%emt 0:01:27]} Ng6 {[%emt 0:00:06]} 5. d4 {[%emt 0:00:00]}
exd4 {[%emt 0:00:15]} 6. Nxd4 {[%emt 0:00:08]} Bc5 {[%emt 0:00:09]} 7. Nf5 {
[%emt 0:03:01] C60: Ruy Lopez: Unusual Black 3rd moves and 3...g6.} O-O {
[%emt 0:00:20]} 8. Nc3 {[%emt 0:01:48]} a6 {[%emt 0:03:10]} 9. Bd3 {[%emt 0:00:
00] White is slightly better.} d6 {[%emt 0:03:41]} 10. Qh5 {[%emt 0:10:21] [#]}
Nce5 $146 {[%emt 0:18:21]} ({Predecessor:} 10... Be6 11. Bg5 f6 12. Bd2 Qe8 13.
Nd5 Qf7 14. Bc4 Kh8 15. Bb3 Nd4 16. Rad1 c6 17. Nxd4 Bxd4 {½-½ (46)
Szakolczai,P (2225)-Csapo,Z (2290) Hungary 1995}) 11. Be2 {[%emt 0:16:55]} Be6
{[%emt 0:13:20]} 12. Kh1 {[%emt 0:01:23]} Nd7 {[%emt 0:07:53]} 13. Bg5 {
[%emt 0:00:37]} f6 $1 {[%emt 0:04:38]} 14. Bd2 {[%emt 0:00:07]} Nge5 {[%emt 0:
00:00]} (14... c6 $11) 15. f4 {[%emt 0:06:40] White is more active.} Bf7 {
[%emt 0:05:29]} (15... Nc6 $142) 16. Qh4 {[%emt 0:02:24]} (16. Qh3 $142 Nc6 17.
Nd5) 16... Nc6 {[%emt 0:05:34] [#]} (16... Ng6 $16 17. Qg4 Kh8) 17. Rf3 $1 $18
{[%emt 0:00:35]} b5 $2 {[%emt 0:06:15]} (17... Be6 18. Rg3 (18. Qg4 Bxf5 19.
Bc4+ Kh8 $16) 18... Bxf5) 18. Rh3 {[%emt 0:06:15][%csl Gh3][%cal Rh4h7]} Bg6 {
[%emt 0:00:29]} 19. Bh5 $40 {[%emt 0:04:14] Intending Bxg6 and mate. Black is
in trouble.} Bxf5 {[%emt 0:02:56]} 20. exf5 {[%emt 0:00:08]} h6 {[%emt 0:00:45]
} 21. Bf3 {[%emt 0:00:13]} Nd4 {[%emt 0:03:51]} 22. Bxa8 {[%emt 0:03:15]} Qxa8
{[%emt 0:00:06]} 23. Qg4 {[%emt 0:00:39] [#] Hoping for Rxh6.} Kh8 $2 {[%emt 0:
01:05] Loses the game.} (23... b4 $16 {is a better defense.}) 24. Re1 {[%emt 0:
00:29] Black must now prevent Re7.} (24. Rg3 Rf7 25. a3 Nxc2 $16) 24... Re8 {
[%emt 0:01:17] Prevents Re7.} (24... d5 $142 25. Qg6 (25. Rg3 Rg8 $18) 25...
Nxc2) 25. Rhe3 {[%emt 0:00:56]} (25. Rg3 Rxe1+ 26. Bxe1 Qg8 $18) 25... Rxe3 {
[%emt 0:00:12]} 26. Rxe3 {[%emt 0:00:04]} ({And not} 26. Bxe3 Nxc2 27. Bxc5
Nxe1 28. Bxd6 cxd6 $19) 26... Qd8 {[%emt 0:00:41]} (26... Nc6 $142 27. Re2 (27.
Rg3 Qg8 $18) 27... Qg8) 27. Qg6 {[%emt 0:01:11] Weighted Error Value: White=0.
20 (precise) /Black=0.54} 1-0

[Event "44th Chess Olympiad Women 2022"]
[Site "Chennai"]
[Date "2022.08.01"]
[Round "4.23"]
[White "Citra, Dewi Ardhiani Anast"]
[Black "Khan, Nazrana"]
[Result "1-0"]
[WhiteElo "2257"]
[BlackElo "1829"]
[Annotator "NA RC"]
[PlyCount "71"]
[EventDate "2022.??.??"]
[TimeControl "60"]

1. d4 {[%emt 0:00:04]} Nf6 {[%emt 0:00:20]} 2. Bf4 {[%emt 0:00:11]} e6 {
[%emt 0:02:22]} 3. e3 {[%emt 0:00:43]} b6 {[%emt 0:01:28]} 4. Nd2 {[%emt 0:00:
00]} Bb7 {[%emt 0:00:59]} 5. Ngf3 {[%emt 0:00:25]} c5 {[%emt 0:03:04]} 6. Nc4 {
[%emt 0:01:45]} d5 {[%emt 0:03:29]} 7. Nce5 {[%emt 0:00:07]} Be7 {[%emt 0:00:
00]} 8. Bb5+ {[%emt 0:04:49]} Nfd7 {[%emt 0:14:29]} 9. Nxd7 {[%emt 0:00:11]}
Nxd7 {[%emt 0:00:04]} 10. Ne5 {[%emt 0:00:05]} f6 {[%emt 0:11:03]} 11. Qh5+ {
[%emt 0:05:19]} g6 {[%emt 0:01:33]} 12. Nxg6 {[%emt 0:00:09]} hxg6 {[%emt 0:00:
00]} 13. Qxh8+ {[%emt 0:00:08]} Bf8 {[%emt 0:03:29]} 14. Bh6 {[%emt 0:00:14]}
Ke7 {[%emt 0:01:58]} 15. Qh7+ {[%emt 0:00:10]} Kd6 {[%emt 0:06:10]} 16. Bxf8+ {
[%emt 0:00:10]} Nxf8 {[%emt 0:02:05]} 17. Qxb7 {[%emt 0:00:23]} a6 {[%emt 0:00:
00]} 18. dxc5+ {[%emt 0:00:10]} bxc5 {[%emt 0:00:49]} 19. Qc6+ {[%emt 0:00:05]}
Ke5 {[%emt 0:01:08]} 20. Bd3 {[%emt 0:00:14]} f5 {[%emt 0:03:52]} 21. Qxc5 {
[%emt 0:00:16]} Nd7 {[%emt 0:03:21]} 22. Qc3+ {[%emt 0:01:06]} Kd6 {[%emt 0:00:
00]} 23. Qb4+ {[%emt 0:00:44]} Nc5 {[%emt 0:01:12]} 24. O-O {[%emt 0:00:41]}
Qc7 {[%emt 0:01:58]} 25. Qf4+ {[%emt 0:00:39]} e5 {[%emt 0:00:46]} 26. Qh6 {
[%emt 0:00:10]} Qf7 {[%emt 0:01:23]} 27. Rfd1 {[%emt 0:00:13]} Kc6 {[%emt 0:00:
00]} 28. c4 {[%emt 0:00:15]} Qf6 {[%emt 0:03:45]} 29. cxd5+ {[%emt 0:00:18]}
Kd6 {[%emt 0:00:20]} 30. h4 {[%emt 0:01:02]} Rh8 {[%emt 0:02:29]} 31. Qg5 {
[%emt 0:00:08]} Qf7 {[%emt 0:02:13]} 32. b4 {[%emt 0:00:12]} Na4 {[%emt 0:00:
00]} 33. Rac1 {[%emt 0:00:31]} Nb2 {[%emt 0:07:59]} 34. Rc6+ {[%emt 0:00:49]}
Kd7 {[%emt 0:01:29]} 35. Rdc1 {[%emt 0:00:19]} Qxd5 {[%emt 0:03:19]} 36. Rc7+ {
[%emt 0:00:14]} 1-0

[Event "44th Chess Olympiad Women 2022"]
[Site "Chennai"]
[Date "2022.08.01"]
[Round "4.23"]
[White "Jannatul, Ferdous"]
[Black "Mariroh, Fariha"]
[Result "0-1"]
[WhiteElo "1815"]
[BlackElo "1839"]
[Annotator "NA RC"]
[PlyCount "74"]
[EventDate "2022.??.??"]
[TimeControl "60"]

1. e4 {[%emt 0:00:12]} c5 {[%emt 0:00:06]} 2. Nf3 {[%emt 0:00:06]} d6 {[%emt 0:
00:00]} 3. d4 {[%emt 0:00:06]} cxd4 {[%emt 0:00:04]} 4. Nxd4 {[%emt 0:00:06]}
Nf6 {[%emt 0:00:04]} 5. Nc3 {[%emt 0:00:11]} Nc6 {[%emt 0:00:03]} 6. Bg5 {
[%emt 0:00:34]} e6 {[%emt 0:00:13]} 7. Qd2 {[%emt 0:00:09]} a6 {[%emt 0:00:06]}
8. O-O-O {[%emt 0:01:13]} Bd7 {[%emt 0:00:06]} 9. f4 {[%emt 0:01:03]} Be7 {
[%emt 0:00:10]} 10. Kb1 {[%emt 0:01:56]} b5 {[%emt 0:01:38]} 11. Bxf6 {[%emt 0:
00:00]} gxf6 {[%emt 0:04:04]} 12. Ndxb5 {[%emt 0:01:11]} axb5 {[%emt 0:04:21]}
13. Nxb5 {[%emt 0:04:24]} Qb8 {[%emt 0:06:05]} 14. Nxd6+ {[%emt 0:01:17]} Bxd6
{[%emt 0:00:12]} 15. Qxd6 {[%emt 0:00:18]} Qxd6 {[%emt 0:00:06]} 16. Rxd6 {
[%emt 0:00:11]} Ke7 {[%emt 0:01:12]} 17. Rd2 {[%emt 0:00:40]} Ra4 {[%emt 0:00:
00]} 18. Bb5 {[%emt 0:29:16]} Rxe4 {[%emt 0:04:24]} 19. Rhd1 {[%emt 0:01:53]}
Be8 {[%emt 0:00:10]} 20. Rd6 {[%emt 0:04:27]} Nb4 {[%emt 0:01:01]} 21. Bxe8 {
[%emt 0:09:45]} Rxe8 {[%emt 0:00:51]} 22. Rd7+ {[%emt 0:01:45]} Kf8 {[%emt 0:
00:00]} 23. R7d4 {[%emt 0:02:42]} Rxd4 {[%emt 0:00:48]} 24. Rxd4 {[%emt 0:00:
00]} Nc6 {[%emt 0:02:12]} 25. Rc4 {[%emt 0:02:17]} Ne7 {[%emt 0:18:08]} 26. a4
{[%emt 0:02:32]} Nd5 {[%emt 0:00:21]} 27. g3 {[%emt 0:01:15]} Ke7 {[%emt 0:00:
00]} 28. a5 {[%emt 0:01:37]} Kd6 {[%emt 0:02:02]} 29. c3 {[%emt 0:04:51]} e5 {
[%emt 0:01:41]} 30. Re4 {[%emt 0:17:34]} Ra8 {[%emt 0:15:43]} 31. fxe5+ {
[%emt 0:01:15]} fxe5 {[%emt 0:00:09]} 32. Ra4 {[%emt 0:07:17]} f5 {[%emt 0:00:
00]} 33. Kc2 {[%emt 0:00:36]} e4 {[%emt 0:01:46]} 34. Kd2 {[%emt 0:00:19]} h5 {
[%emt 0:09:50]} 35. c4 {[%emt 0:00:57]} Nf6 {[%emt 0:04:07]} 36. b4 {[%emt 0:
00:00]} Ng4 {[%emt 0:01:15]} 37. h3 {[%emt 0:00:39]} Nf2 {[%emt 0:00:25]} 0-1

[Event "44th Chess Olympiad Women 2022"]
[Site "Chennai"]
[Date "2022.08.01"]
[Round "4.23"]
[White "Sultana, Sharmin Shirin"]
[Black "Sukandar, Irine Kharisma"]
[Result "0-1"]
[WhiteElo "1995"]
[BlackElo "2373"]
[Annotator "TA"]
[PlyCount "76"]
[EventDate "2022.??.??"]
[TimeControl "60"]

{[%evp 21,76,20,16,0,7,0,0,0,0,-17,0,0,0,0,426,430,430,0,0,-79,-69,-106,0,-170,
-84,-93,-87,-76,-90,-200,-199,-270,-281,-250,-250,-242,-228,-341,-263,-304,
-124,-136,-102,-328,-352,-327,-331,-965,-504,-1022,-1020,-966,-942,-1489,-2291,
-29995,-29996]} 1. d4 {[%emt 0:00:07]} Nf6 {[%emt 0:00:21]} 2. c4 {[%emt 0:00:
00]} e6 {[%emt 0:00:07]} 3. Nc3 {[%emt 0:00:03]} Bb4 {[%emt 0:00:17]} 4. e3 {
[%emt 0:00:23]} O-O {[%emt 0:01:04]} 5. Bd3 {[%emt 0:00:05]} d5 {[%emt 0:00:57]
} 6. Nf3 {[%emt 0:00:30]} c5 {[%emt 0:17:07]} 7. O-O {[%emt 0:00:22]} dxc4 {
[%emt 0:07:31]} 8. Bxc4 {[%emt 0:00:06]} Nc6 {[%emt 0:00:44]} 9. a3 {[%emt 0:
00:00]} Bxc3 {[%emt 0:01:38]} 10. bxc3 {[%emt 0:00:02]} Qc7 {[%emt 0:01:23]}
11. Ba2 {[%emt 0:01:37] 11.Re1 is the modern continuation.} Rd8 {[%emt 0:04:58]
} 12. h3 {[%emt 0:12:08] E59: Nimzo-Indian: Rubinstein: Main Line: 7...Nc6 8
a3 Bxc3 9 bxc3 dxc4.} b6 {[%emt 0:01:30]} 13. Qe2 {[%emt 0:12:44] [#]} Na5 $146
{[%emt 0:07:46]} ({Predecessor:} 13... Bb7 14. Rd1 Rac8 15. Bd2 Ne7 16. Ne5 Ng6
17. Nxg6 hxg6 18. f3 e5 19. Rac1 c4 {½-½ (62) Irzhanov,R (2500)-Annageldyev,
O (2485) Ashkhabad 1996}) 14. e4 {[%emt 0:16:45] The position is equal.} Bb7 {
[%emt 0:08:36]} 15. e5 {[%emt 0:05:36]} Ne4 {[%emt 0:04:09]} 16. Ng5 {[%emt 0:
00:00]} Qc6 {[%emt 0:08:36]} (16... Nxc3 $2 17. Qc2 g6 18. Qxc3 $18) 17. f3 {
[%emt 0:13:38]} Ng3 {[%emt 0:04:29]} (17... Nxg5 $1 $11 18. Bxg5 Rdc8) 18. Qc2
$1 $18 {[%emt 0:03:07]} g6 {[%emt 0:00:42] [#]} (18... Nxf1 $2 19. Qxh7+ Kf8
20. Qh8+ Ke7 21. Qxg7) 19. Bf4 $2 {[%emt 0:14:38]} Nh5 $11 {[%emt 0:02:56]
Dancing on a razor blade. Pair of Knights!} (19... Nxf1 20. Rxf1 Qd7 21. Qf2
$15) 20. Bh2 {[%emt 0:02:45]} (20. Qd2 $11 {keeps the balance.}) 20... cxd4 $17
{[%emt 0:00:21]} 21. Ne4 {[%emt 0:00:30] Inhibits Qc5.} dxc3 {[%emt 0:06:10]} (
21... Qc7 $17 {Hoping for ...Bxe4.} 22. Nd6 dxc3) 22. Qc1 $2 {[%emt 0:00:57]} (
22. g4 $11 {and White has nothing to worry.}) 22... Rd4 {[%emt 0:07:30]} (22...
Qc8 $19 {White must now prevent ...Bxe4.} 23. Nxc3 Qc5+ 24. Kh1 Rd3) 23. Qe3 {
[%emt 0:00:21]} Qa4 {[%emt 0:08:45][%cal Rb7e4]} 24. Nxc3 {[%emt 0:00:36]} Qd7
$36 {[%emt 0:00:11] Black has strong initiative. Black is more active.} 25.
Rac1 {[%emt 0:01:05]} (25. Rfd1 $17 Rd8 26. Rxd4 Qxd4 27. Qxd4 Rxd4 28. Nb5)
25... Rd3 $19 {[%emt 0:00:33]} 26. Qf2 {[%emt 0:00:46]} (26. Qe1 $142) 26...
Rc8 {[%emt 0:01:00]} 27. Nb1 {[%emt 0:00:00]} Rxc1 {[%emt 0:00:45]} 28. Rxc1 {
[%emt 0:00:02]} Ba6 {[%emt 0:00:25]} 29. Qc2 {[%emt 0:00:17] [#] Against Rd1+}
(29. Kh1 $142) 29... Nf4 $1 {[%emt 0:00:00] Strongly threatening ...Qd4+.} 30.
Kh1 {[%emt 0:00:33] [#]} (30. Bg3 Qd4+) 30... Nd5 {[%emt 0:00:51]} (30... Nxh3
$1 $19 {is more deadly.} 31. Bg3 (31. gxh3 $2 Rxf3 32. Qd2 Qxd2 $19) 31... Ng5)
31. Bxd5 $17 {[%emt 0:00:19]} Qxd5 {[%emt 0:00:18]} 32. Bg3 $2 {[%emt 0:00:52]}
(32. Nc3 $17 Qc4 33. Ne4) 32... Nb3 $19 {[%emt 0:00:29][%cal Ya5b3,Yb3d4,Yd4f3,
Yf3e1]} 33. Re1 {[%emt 0:00:55]} Nd4 {[%emt 0:00:46]} 34. Qa4 {[%emt 0:00:29]}
(34. Qc7 Nxf3 35. Nc3) 34... Bb5 {[%emt 0:01:47]} 35. Qxa7 {[%emt 0:00:09] [#]}
(35. Qb4 $142 Nc2 36. Nc3 Nxb4 37. Nxd5 Nxd5 38. Ra1) 35... Nxf3 $1 {[%emt 0:
00:00]} 36. Qb8+ {[%emt 0:00:07]} Kg7 {[%emt 0:00:18]} 37. Nc3 {[%emt 0:01:16]}
Rxc3 {[%emt 0:00:27]} 38. Bf4 {[%emt 0:00:38]} Nxe1 {[%emt 0:00:00] Quite a
comeback for Black. Weighted Error Value: White=1.06/Black=0.67} 0-1

[Event "44th Chess Olympiad Women 2022"]
[Site "Chennai"]
[Date "2022.08.01"]
[Round "4.24"]
[White "Argote Heredia, Valentina"]
[Black "Penafiel Mendoza, Josselyne"]
[Result "1/2-1/2"]
[WhiteElo "2205"]
[BlackElo "1804"]
[Annotator "RC"]
[PlyCount "128"]
[EventDate "2022.??.??"]
[TimeControl "60"]

1. e4 {[%emt 0:00:04]} c5 {[%emt 0:00:13]} 2. Nf3 {[%emt 0:00:04]} d6 {[%emt 0:
00:00]} 3. d4 {[%emt 0:00:05]} cxd4 {[%emt 0:00:10]} 4. Nxd4 {[%emt 0:00:06]}
Nf6 {[%emt 0:00:17]} 5. Nc3 {[%emt 0:00:05]} a6 {[%emt 0:00:23]} 6. f3 {
[%emt 0:00:32]} e5 {[%emt 0:00:24]} 7. Nb3 {[%emt 0:00:05]} Be6 {[%emt 0:00:54]
} 8. Be3 {[%emt 0:00:23]} Be7 {[%emt 0:01:59]} 9. Qd2 {[%emt 0:09:09]} Nbd7 {
[%emt 0:04:47]} 10. O-O-O {[%emt 0:01:17]} b5 {[%emt 0:01:29]} 11. Nd5 {
[%emt 0:09:05]} Bxd5 {[%emt 0:08:01]} 12. exd5 {[%emt 0:00:05]} Nb6 {[%emt 0:
00:00]} 13. Bxb6 {[%emt 0:00:06]} Qxb6 {[%emt 0:00:09]} 14. g4 {[%emt 0:01:53]}
O-O {[%emt 0:06:59]} 15. g5 {[%emt 0:12:28]} Nh5 {[%emt 0:00:56]} 16. h4 {
[%emt 0:03:05]} a5 {[%emt 0:01:33]} 17. Kb1 {[%emt 0:00:56]} a4 {[%emt 0:02:49]
} 18. Nc1 {[%emt 0:00:05]} b4 {[%emt 0:04:20]} 19. Bh3 {[%emt 0:06:54]} Ra5 {
[%emt 0:01:58]} 20. Ne2 {[%emt 0:05:24]} b3 {[%emt 0:02:11]} 21. cxb3 {[%emt 0:
00:00]} axb3 {[%emt 0:00:40]} 22. a3 {[%emt 0:00:09]} f5 {[%emt 0:05:36]} 23.
Qd3 {[%emt 0:07:53]} g6 {[%emt 0:02:07]} 24. Rc1 {[%emt 0:00:23]} Rb8 {[%emt 0:
00:00]} 25. Rc3 {[%emt 0:09:28]} Bf8 {[%emt 0:04:43]} 26. Rhc1 {[%emt 0:15:33]}
Raa8 {[%emt 0:07:09]} 27. Qc4 {[%emt 0:04:24]} Nf4 {[%emt 0:02:30]} 28. Bf1 {
[%emt 0:03:31]} Bg7 {[%emt 0:02:02]} 29. Qc6 {[%emt 0:02:49]} Qf2 {[%emt 0:00:
00]} 30. Qc4 {[%emt 0:01:51]} Nxe2 {[%emt 0:00:18]} 31. Qxe2 {[%emt 0:02:55]}
Qxh4 {[%emt 0:00:40]} 32. Qe3 {[%emt 0:00:43]} e4 {[%emt 0:03:40]} 33. Rxb3 {
[%emt 0:01:18]} Qh2 {[%emt 0:00:41]} 34. Rc2 {[%emt 0:00:45]} Qe5 {[%emt 0:00:
00]} 35. Bc4 {[%emt 0:00:46]} Rxb3 {[%emt 0:01:47]} 36. Bxb3 {[%emt 0:00:38]}
Rb8 {[%emt 0:09:35]} 37. Ka2 {[%emt 0:00:09]} exf3 {[%emt 0:02:35]} 38. Qxf3 {
[%emt 0:00:06]} f4 {[%emt 0:00:53]} 39. Qh3 {[%emt 0:00:11]} Qe3 {[%emt 0:00:
00]} 40. Rc8+ {[%emt 0:01:31]} Rxc8 {[%emt 0:00:29]} 41. Qxc8+ {[%emt 0:30:04]}
Kf7 {[%emt 0:30:30]} 42. Qe6+ {[%emt 0:01:20]} Qxe6 {[%emt 0:00:07]} 43. dxe6+
{[%emt 0:00:03]} Ke7 {[%emt 0:01:50]} 44. Bd5 {[%emt 0:00:18]} Bd4 {[%emt 0:00:
00]} 45. b4 {[%emt 0:00:56]} f3 {[%emt 0:01:52]} 46. Bxf3 {[%emt 0:00:12]} Kxe6
{[%emt 0:00:02]} 47. a4 {[%emt 0:00:00]} d5 {[%emt 0:00:00]} 48. a5 {[%emt 0:
00:00]} Kd6 {[%emt 0:00:00]} 49. Kb3 {[%emt 0:00:00]} Be3 {[%emt 0:00:00]} 50.
b5 {[%emt 0:00:00]} Bxg5 {[%emt 0:00:00]} 51. b6 {[%emt 0:00:00]} Kc6 {[%emt 0:
00:00]} 52. a6 {[%emt 0:00:00]} Kxb6 {[%emt 0:00:00]} 53. Bxd5 {[%emt 0:00:00]}
Be3 {[%emt 0:00:00]} 54. Bg8 {[%emt 0:00:00]} h6 {[%emt 0:00:00]} 55. Bf7 {
[%emt 0:00:00]} g5 {[%emt 0:00:00]} 56. a7 {[%emt 0:00:00]} Kxa7 {[%emt 0:00:
00]} 57. Bh5 {[%emt 0:00:00]} Kb6 {[%emt 0:00:00]} 58. Kc4 {[%emt 0:00:00]} Kc6
{[%emt 0:00:00]} 59. Kd3 {[%emt 0:00:00]} Bc1 {[%emt 0:12:09]} 60. Ke4 {
[%emt 0:00:00]} Kc5 {[%emt 0:01:02]} 61. Kf5 {[%emt 0:00:00]} Kd4 {[%emt 0:00:
00]} 62. Kg4 {[%emt 0:00:00]} Ke5 {[%emt 0:01:28]} 63. Bg6 {[%emt 0:00:00]} Kf6
{[%emt 0:01:01]} 64. Bh5 {[%emt 0:00:00]} Ke5 {[%emt 0:00:26]} 1/2-1/2

[Event "44th Chess Olympiad Women 2022"]
[Site "Chennai"]
[Date "2022.08.01"]
[Round "4.24"]
[White "Castrillon Gomez, Melissa"]
[Black "Heredia Serrano, Carla"]
[Result "1-0"]
[WhiteElo "2230"]
[BlackElo "2090"]
[Annotator "RC"]
[PlyCount "110"]
[EventDate "2022.??.??"]
[TimeControl "60"]

1. d4 {[%emt 0:00:05]} d5 {[%emt 0:01:50]} 2. c4 {[%emt 0:00:08]} c6 {[%emt 0:
00:00]} 3. Nf3 {[%emt 0:00:05]} Nf6 {[%emt 0:00:04]} 4. Nc3 {[%emt 0:00:08]}
dxc4 {[%emt 0:03:57]} 5. a4 {[%emt 0:00:11]} Bg4 {[%emt 0:08:07]} 6. Ne5 {
[%emt 0:03:52]} Bh5 {[%emt 0:02:24]} 7. Nxc4 {[%emt 0:08:04]} e6 {[%emt 0:00:
00]} 8. Qb3 {[%emt 0:26:32]} Na6 {[%emt 0:01:56]} 9. Bf4 {[%emt 0:04:22]} Nb4 {
[%emt 0:24:08]} 10. Be5 {[%emt 0:17:18]} a5 {[%emt 0:09:31]} 11. g3 {[%emt 0:
00:00]} Bg6 {[%emt 0:10:02]} 12. Rc1 {[%emt 0:05:25]} Be7 {[%emt 0:05:26]} 13.
Bg2 {[%emt 0:00:30]} O-O {[%emt 0:00:03]} 14. O-O {[%emt 0:00:36]} Nfd5 {
[%emt 0:01:40]} 15. e4 {[%emt 0:03:05]} f6 {[%emt 0:03:13]} 16. exd5 {[%emt 0:
00:00]} exd5 {[%emt 0:00:12]} 17. Bf4 {[%emt 0:09:41]} dxc4 {[%emt 0:00:02]}
18. Qxc4+ {[%emt 0:00:05]} Bf7 {[%emt 0:00:24]} 19. Qe2 {[%emt 0:00:18]} Bd6 {
[%emt 0:00:43]} 20. Be3 {[%emt 0:01:09]} Re8 {[%emt 0:04:30]} 21. Rfd1 {
[%emt 0:02:28]} Bf8 {[%emt 0:00:49]} 22. d5 {[%emt 0:02:28]} cxd5 {[%emt 0:00:
00]} 23. Qb5 {[%emt 0:00:22]} Ra6 {[%emt 0:07:51]} 24. Nxd5 {[%emt 0:03:25]}
Nxd5 {[%emt 0:00:45]} 25. Bxd5 {[%emt 0:00:15]} Bxd5 {[%emt 0:01:32]} 26. Rxd5
{[%emt 0:00:11]} Qe7 {[%emt 0:00:34]} 27. Rd7 {[%emt 0:00:27]} Qe4 {[%emt 0:00:
00]} 28. Rxb7 {[%emt 0:02:06]} Rd6 {[%emt 0:00:36]} 29. Qc4+ {[%emt 0:01:22]}
Qe6 {[%emt 0:00:13]} 30. Qxe6+ {[%emt 0:00:43]} Rdxe6 {[%emt 0:00:02]} 31. Rcc7
{[%emt 0:00:50]} Re4 {[%emt 0:00:51]} 32. b3 {[%emt 0:00:33]} h5 {[%emt 0:00:
00]} 33. Kg2 {[%emt 0:01:15]} h4 {[%emt 0:00:23]} 34. Bc5 {[%emt 0:01:26]} Bxc5
{[%emt 0:00:25]} 35. Rxc5 {[%emt 0:00:13]} hxg3 {[%emt 0:00:40]} 36. hxg3 {
[%emt 0:00:11]} R4e5 {[%emt 0:00:32]} 37. Rxe5 {[%emt 0:00:37]} Rxe5 {[%emt 0:
00:00]} 38. Rb5 {[%emt 0:00:16]} Kf7 {[%emt 0:00:49]} 39. Rxe5 {[%emt 0:02:57]}
fxe5 {[%emt 0:00:02]} 40. Kf3 {[%emt 0:00:06]} Ke6 {[%emt 0:01:06]} 41. Ke4 {
[%emt 0:30:05]} g6 {[%emt 0:23:11]} 42. f4 {[%emt 0:00:00]} exf4 {[%emt 0:00:
00]} 43. Kxf4 {[%emt 0:00:00]} Kf6 {[%emt 0:07:41]} 44. Kg4 {[%emt 0:00:00]} g5
{[%emt 0:00:44]} 45. Kh5 {[%emt 0:00:00]} Kf5 {[%emt 0:00:23]} 46. Kh6 {
[%emt 0:00:00]} Kg4 {[%emt 0:00:44]} 47. Kg6 {[%emt 0:00:00]} Kxg3 {[%emt 0:00:
00]} 48. Kxg5 {[%emt 0:00:00]} Kf3 {[%emt 0:00:14]} 49. Kf5 {[%emt 0:00:00]}
Ke3 {[%emt 0:00:18]} 50. Ke5 {[%emt 0:00:00]} Kd3 {[%emt 0:00:55]} 51. Kd5 {
[%emt 0:00:00]} Kc3 {[%emt 0:00:40]} 52. Kc5 {[%emt 0:00:00]} Kxb3 {[%emt 0:00:
00]} 53. Kb5 {[%emt 0:00:00]} Kc3 {[%emt 0:00:25]} 54. Kxa5 {[%emt 0:00:00]}
Kc4 {[%emt 0:00:12]} 55. Kb6 {[%emt 0:00:00]} Kd5 {[%emt 0:00:08]} 1-0

[Event "44th Chess Olympiad Women 2022"]
[Site "Chennai"]
[Date "2022.08.01"]
[Round "4.24"]
[White "Nunez Giler, Fanny"]
[Black "Rodriguez Rueda, Paula Andrea"]
[Result "0-1"]
[WhiteElo "1660"]
[BlackElo "2237"]
[Annotator "NA RC"]
[PlyCount "100"]
[EventDate "2022.??.??"]
[TimeControl "60"]

1. e4 {[%emt 0:03:53]} c5 {[%emt 0:00:07]} 2. Nf3 {[%emt 0:00:49]} d6 {[%emt 0:
00:00]} 3. d4 {[%emt 0:00:41]} cxd4 {[%emt 0:00:04]} 4. Nxd4 {[%emt 0:00:05]}
Nf6 {[%emt 0:00:03]} 5. f3 {[%emt 0:00:06]} e5 {[%emt 0:04:33]} 6. Bb5+ {
[%emt 0:00:16]} Nbd7 {[%emt 0:06:32]} 7. Nb3 {[%emt 0:06:32]} Be7 {[%emt 0:00:
00]} 8. Bg5 {[%emt 0:14:59]} O-O {[%emt 0:01:16]} 9. Nc3 {[%emt 0:10:00]} Nb6 {
[%emt 0:05:14]} 10. Qd2 {[%emt 0:10:18]} h6 {[%emt 0:04:00]} 11. Bxf6 {[%emt 0:
00:00]} Bxf6 {[%emt 0:00:02]} 12. O-O {[%emt 0:00:32]} Bg5 {[%emt 0:02:33]} 13.
Qd3 {[%emt 0:05:49]} Be6 {[%emt 0:00:54]} 14. Qe2 {[%emt 0:04:34]} Rc8 {
[%emt 0:04:29]} 15. Rfd1 {[%emt 0:02:13]} Qc7 {[%emt 0:00:11]} 16. Qf2 {
[%emt 0:02:27]} a6 {[%emt 0:03:48]} 17. Bd3 {[%emt 0:02:11]} Rfd8 {[%emt 0:00:
00]} 18. Kh1 {[%emt 0:01:14]} Nc4 {[%emt 0:08:25]} 19. Bxc4 {[%emt 0:01:58]}
Bxc4 {[%emt 0:00:00]} 20. Nd2 {[%emt 0:00:50]} Be6 {[%emt 0:00:15]} 21. Nf1 {
[%emt 0:00:17]} b5 {[%emt 0:00:34]} 22. a3 {[%emt 0:06:37]} Rd7 {[%emt 0:11:37]
} 23. h4 {[%emt 0:00:00]} Bd8 {[%emt 0:00:06]} 24. Rd2 {[%emt 0:04:02]} Qc6 {
[%emt 0:03:35]} 25. Rad1 {[%emt 0:00:00]} Ba5 {[%emt 0:00:56]} 26. Ne3 {
[%emt 0:01:58]} Bxc3 {[%emt 0:00:46]} 27. bxc3 {[%emt 0:00:01]} Qxc3 {[%emt 0:
00:00]} 28. Rd3 {[%emt 0:00:23]} Qa5 {[%emt 0:03:44]} 29. Qd2 {[%emt 0:01:13]}
Qxd2 {[%emt 0:00:06]} 30. R3xd2 {[%emt 0:00:16]} Rc3 {[%emt 0:00:51]} 31. Rd3 {
[%emt 0:00:07]} Rdc7 {[%emt 0:00:25]} 32. R1d2 {[%emt 0:00:53]} Rxd3 {[%emt 0:
00:00]} 33. Rxd3 {[%emt 0:00:06]} Rc6 {[%emt 0:00:06]} 34. Kg1 {[%emt 0:00:06]}
Kf8 {[%emt 0:00:17]} 35. Kf2 {[%emt 0:00:09]} Ke7 {[%emt 0:00:06]} 36. g3 {
[%emt 0:01:19]} g6 {[%emt 0:01:31]} 37. f4 {[%emt 0:01:03]} f5 {[%emt 0:02:10]}
38. Kf3 {[%emt 0:00:30]} Kf6 {[%emt 0:09:39]} 39. g4 {[%emt 0:00:52]} fxg4+ {
[%emt 0:01:19]} 40. Nxg4+ {[%emt 0:00:02]} Bxg4+ {[%emt 0:00:10]} 41. Kxg4 {
[%emt 0:30:05]} Ke6 {[%emt 0:32:56]} 42. f5+ {[%emt 0:01:11]} gxf5+ {[%emt 0:
00:00]} 43. exf5+ {[%emt 0:00:02]} Kf6 {[%emt 0:00:01]} 44. c3 {[%emt 0:00:40]}
Rc4+ {[%emt 0:04:38]} 45. Kh5 {[%emt 0:00:35]} Kxf5 {[%emt 0:00:05]} 46. Rxd6 {
[%emt 0:00:10]} e4 {[%emt 0:00:11]} 47. Rxa6 {[%emt 0:00:37]} e3 {[%emt 0:00:
00]} 48. Ra8 {[%emt 0:00:10]} e2 {[%emt 0:02:00]} 49. Rf8+ {[%emt 0:00:34]} Ke4
{[%emt 0:00:05]} 50. Kxh6 {[%emt 0:01:12]} Ke3 {[%emt 0:00:05]} 0-1